bitfinex-derivatives/quotes_SOLF0:USTF0_20251230
["timestamp","ask_amount","ask_price","bid_price","bid_amount"]
[1767106138495,95.08,124.48,124.39,7.2444]
[1767106138699,7.2407,124.46,124.36,112.7177]
[1767106138900,101.06950442,124.47,124.35,207.807]
[1767106139198,95.08,124.46,124.35,207.807]
[1767106139404,101.04950442,124.47,124.39,0.05328987]
[1767106139603,3.43,124.46,124.37,112.708]
[1767106140613,0.0610273,124.43,124.4,0.05534953]
[1767106140807,3.4910273,124.43,124.36,95.06]
[1767106140999,3.4910273,124.43,124.33,112.7473]
[1767106141312,3.43,124.42,124.35,7.2464]
[1767106141704,0.05919398,124.4,124.37,0.05607693]
[1767106144810,112.5932,124.51,124.37,0.05607693]
[1767106144811,3.43,124.45,124.37,0.05607693]
[1767106145107,3.43,124.45,124.36,95.06]
[1767106145608,0.05527007,124.42,124.39,0.05288986]
[1767106146909,3.43,124.45,124.39,0.05288986]
[1767106147813,3.48932209,124.43,124.39,0.05288986]
[1767106147997,3.48932209,124.43,124.39,0.00288986]
[1767106148203,3.48932209,124.43,124.35,95.06]
[1767106148406,3.43,124.43,124.33,112.7441]
[1767106148605,3.43,124.43,124.33,207.8041]
[1767106148810,3.43,124.41,124.34,7.2469]
[1767106149115,0.05768675,124.39,124.36,0.05599311]
[1767106151913,3.43,124.43,124.36,0.05599311]
[1767106152109,3.43,124.43,124.35,207.788]
[1767106152715,3.43,124.45,124.36,112.7176]
[1767106152915,0.06157519,124.42,124.39,0.06059043]
[1767106155318,3.49157519,124.42,124.39,0.00059043]
[1767106160518,3.49157519,124.42,124.33,112.7446]
[1767106160722,3.43,124.42,124.33,112.7446]
[1767106160928,3.38,124.41,124.35,7.2468]
[1767106161532,0.06005098,124.39,124.37,0.05452564]
[1767106162525,3.38,124.44,124.37,7.30012564]
[1767106163821,0.06122312,124.42,124.37,7.30012564]
[1767106164027,0.06122312,124.42,124.38,7.245]
[1767106165232,0.06122312,124.42,124.39,7.2445]
[1767106166335,0.06122312,124.42,124.37,7.29982564]
[1767106166535,0.06122312,124.42,124.37,0.05452564]
[1767106166833,0.06122312,124.42,124.38,7.2451]
[1767106167034,0.06122312,124.42,124.37,0.05452564]
[1767106167426,0.00122312,124.42,124.39,7.2445]
[1767106168337,3.38,124.48,124.39,3.49642833]
[1767106168531,3.38,124.48,124.38,120.10910603]
[1767106168727,3.38,124.48,124.38,123.60553436]
[1767106169132,3.38,124.48,124.38,116.19812833]
[1767106169341,0.05437521,124.44,124.42,0.05235327]
[1767106170035,3.38,124.48,124.42,0.05235327]
[1767106171042,0.06132231,124.46,124.42,7.29505327]
[1767106171343,3.38,124.5,124.42,3.5487816]
[1767106171547,450.1064,124.58,124.42,3.5487816]
[1767106171548,3.38,124.55,124.44,136.8158]
[1767106171741,3.38,124.55,124.46,3.49642833]
[1767106172136,3.38,124.54,124.46,95.04]
[1767106172448,0.04702258,124.51,124.49,0.05789965]
[1767106172836,3.38,124.54,124.49,0.05789965]
[1767106173345,3.38,124.51,124.43,7.242]
[1767106173651,3.38,124.51,124.41,112.6728]
[1767106173849,3.38,124.51,124.42,95.02]
[1767106174052,3.38,124.51,124.42,207.6777]
[1767106174350,0.05135107,124.48,124.45,0.06139605]
[1767106175649,3.38,124.54,124.45,0.06139605]
[1767106175836,3.38,124.54,124.44,95.02]
[1767106176043,3.38,124.54,124.45,112.6378]
[1767106176551,3.38,124.54,124.46,95.02]
[1767106176746,3.38,124.54,124.48,0.05275282]
[1767106176957,10.6144,124.57,124.48,0.05275282]
[1767106177243,3.38,124.56,124.51,0.05219745]
[1767106177445,3.38,124.56,124.52,0.05413757]
[1767106178041,3.38,124.56,124.52,0.00413757]
[1767106178943,0.05104693,124.55,124.52,0.00413757]
[1767106179147,3.43104693,124.55,124.47,102.2598]
[1767106179346,3.38,124.55,124.47,102.2598]
[1767106179550,3.38,124.55,124.47,95.02]
[1767106179755,3.38,124.55,124.45,7.2407]
[1767106179944,3.38,124.53,124.44,95.0]
[1767106180147,0.05898237,124.5,124.47,0.05702694]
[1767106181049,3.43898237,124.5,124.43,102.2419]
[1767106181247,3.43898237,124.5,124.43,95.0]
[1767106181451,3.43898237,124.5,124.37,129.83280412]
[1767106181646,3.38,124.5,124.38,95.0]
[1767106181842,0.05269667,124.45,124.43,0.05133605]
[1767106182047,0.06182453,124.45,124.43,0.05278789]
[1767106182647,0.00182453,124.45,124.43,0.05278789]
[1767106182853,10.618,124.51,124.43,0.05278789]
[1767106183043,3.38,124.5,124.41,112.6719]
[1767106183850,0.0551558,124.47,124.44,0.05412775]
[1767106187853,3.44,124.55,124.44,112.69672775]
[1767106188055,3.44,124.55,124.45,95.0]
[1767106188446,10.6754,124.55,124.47,7.2397]
[1767106188650,10.6754,124.55,124.5,0.05931369]
[1767106188961,3.44,124.55,124.5,0.05931369]
[1767106191755,3.44,124.54,124.47,7.2395]
[1767106192153,3.44,124.54,124.45,7.2409]
[1767106192754,0.05802162,124.51,124.48,0.05379697]
[1767106193059,0.05802162,124.51,124.48,0.06083906]
[1767106193953,0.05802162,124.51,124.48,7.29983906]
[1767106194157,10.6751,124.56,124.48,7.29983906]
[1767106194365,10.6751,124.56,124.46,225.2462]
[1767106194959,3.44,124.55,124.46,225.2462]
[1767106195157,7.234,124.58,124.49,7.29256282]
[1767106195356,3.44,124.57,124.48,112.611]
[1767106195654,3.44,124.57,124.52,0.06054603]
[1767106197359,3.44,124.6,124.52,0.06054603]
[1767106197563,3.44,124.6,124.55,0.05633735]
[1767106198160,3.4909112,124.59,124.52,94.98]
[1767106199161,3.4909112,124.59,124.54,0.06112267]
[1767106199662,0.0009112,124.59,124.54,0.06112267]
[1767106199858,0.0009112,124.59,124.54,7.29662267]
[1767106200065,0.0009112,124.59,124.54,95.02112267]
[1767106200266,3.3709112,124.59,124.54,0.06112267]
[1767106203063,3.3709112,124.59,124.54,0.00112267]
[1767106204971,0.0009112,124.59,124.54,0.00112267]
[1767106206166,0.0009112,124.59,124.54,7.23672267]
[1767106206359,0.0009112,124.59,124.55,94.94]
[1767106206765,8.472e-05,124.61,124.56,112.5392]
[1767106207072,8.472e-05,124.61,124.57,94.94]
[1767106207273,8.472e-05,124.61,124.56,112.538]
[1767106207473,8.472e-05,124.61,124.57,94.94]
[1767106207673,8.472e-05,124.61,124.58,7.2333]
[1767106207870,3.37,124.64,124.58,7.28870961]
[1767106208274,3.37,124.67,124.58,7.28870961]
[1767106208571,3.37,124.66,124.56,7.2342]
[1767106208877,3.37,124.64,124.57,94.94]
[1767106209862,0.06127581,124.62,124.59,0.05626283]
[1767106210068,0.05811866,124.62,124.59,0.05465715]
[1767106211173,3.37,124.65,124.59,0.05465715]
[1767106211378,3.37,124.69,124.59,0.05465715]
[1767106211576,3.37,124.69,124.57,213.4414923]
[1767106212173,3.37,124.69,124.62,0.06053429]
[1767106212766,3.37,124.69,124.62,94.98053429]
[1767106212971,3.37,124.72,124.62,0.06053429]
[1767106213270,3.37,124.71,124.66,0.05963206]
[1767106213471,3.37,124.71,124.63,94.9]
[1767106213677,118.3664923,124.73,124.63,94.9]
[1767106213678,3.37,124.7,124.63,94.9]
[1767106213976,3.37,124.68,124.58,94.9]
[1767106214170,3.37,124.67,124.58,102.1331]
[1767106214367,0.06115591,124.64,124.61,0.05062353]
[1767106214979,3.37,124.7,124.61,0.05062353]
[1767106215177,3.37,124.7,124.6,112.5002]
[1767106215378,3.37,124.7,124.62,7.2309]
[1767106215578,3.37,124.7,124.62,102.1309]
[1767106215776,3.37,124.7,124.62,94.9]
[1767106215978,3.37,124.7,124.65,0.06103926]
[1767106216286,3.32,124.73,124.65,0.06103926]
[1767106216487,3.32,124.73,124.62,207.3804]
[1767106216787,10.5451,124.73,124.66,0.05386754]
[1767106216971,3.32,124.72,124.66,0.05386754]
[1767106218078,10.5462,124.71,124.66,0.05386754]
[1767106218283,3.32,124.71,124.66,0.05386754]
[1767106219080,3.32,124.74,124.66,0.05386754]
[1767106219271,3.32,124.74,124.63,118.4491923]
[1767106219272,3.32,124.74,124.64,112.4663]
[1767106219471,3.32,124.74,124.69,0.05654831]
[1767106221591,3.32,124.72,124.65,94.88]
[1767106221975,3.32,124.75,124.65,207.3377]
[1767106222185,3.32,124.75,124.66,5.9764923]
[1767106222487,3.32,124.75,124.65,102.1091]
[1767106222984,0.05890682,124.71,124.69,0.06124058]
[1767106223788,3.32,124.75,124.69,0.06124058]
[1767106223988,112.3477,124.78,124.69,0.06124058]
[1767106224182,3.32,124.78,124.68,94.86]
[1767106224384,10.5426,124.77,124.67,13.2044923]
[1767106224594,10.5426,124.77,124.68,94.86]
[1767106224982,3.32,124.77,124.71,0.05325743]
[1767106225185,14.99405121,124.8,124.71,0.05325743]
[1767106225385,3.32,124.76,124.66,7.2285]
[1767106225891,3.32,124.78,124.66,112.4465]
[1767106226089,3.32,124.76,124.65,5.9764923]
[1767106226386,0.05493859,124.72,124.69,0.05309919]
[1767106229092,3.38493859,124.72,124.69,0.00309919]
[1767106229390,10.61043859,124.72,124.63,102.0702]
[1767106229580,3.33,124.72,124.63,94.84]
[1767106229886,3.33,124.72,124.63,100.8164923]
[1767106230084,3.33,124.72,124.61,142.6378923]
[1767106230489,98.17,124.72,124.65,0.05187033]
[1767106230792,10.5561,124.71,124.65,0.05187033]
[1767106230992,3.33,124.71,124.65,0.05187033]
[1767106231594,0.05080402,124.69,124.65,0.05187033]
[1767106231989,3.38080402,124.69,124.58,112.5135]
[1767106232296,3.33,124.68,124.6,7.2321]
[1767106232794,7.2262,124.71,124.62,5.9764923]
[1767106233001,3.33,124.71,124.61,7.2314]
[1767106233199,0.0568752,124.67,124.65,0.05976985]
[1767106233790,0.0568752,124.67,124.58,142.6676923]
[1767106234089,3.33,124.68,124.6,7.232]
[1767106234294,3.33,124.68,124.58,112.5198]
[1767106234494,3.33,124.68,124.57,94.82]
[1767106234697,0.05753789,124.64,124.57,94.82]
[1767106234897,0.05753789,124.64,124.61,0.06052764]
[1767106235099,3.25,124.65,124.55,136.7129]
[1767106235395,102.0685,124.67,124.57,112.5299]
[1767106235695,3.25,124.66,124.57,112.5299]
[1767106236094,3.25,124.66,124.6,0.05825467]
[1767106236298,0.05167354,124.63,124.6,0.05825467]
[1767106241204,3.25167354,124.63,124.55,94.84]
[1767106241503,3.2,124.63,124.56,7.2344]
[1767106242206,0.05583732,124.61,124.58,0.05826676]
[1767106244099,3.25583732,124.61,124.53,7.2363]
[1767106244404,3.2,124.61,124.53,7.2363]
[1767106245000,3.2,124.61,124.54,7.2356]
[1767106245204,0.05527289,124.58,124.56,0.05468521]
[1767106246197,3.35,124.64,124.57,7.36474414]
[1767106246402,3.35,124.64,124.58,7.36474414]
[1767106246597,3.35,124.64,124.53,112.5633]
[1767106246802,3.35,124.62,124.55,7.2348]
[1767106247202,0.051931,124.6,124.57,0.05718488]
[1767106248501,0.051931,124.6,124.54,7.2356]
[1767106248706,3.42,124.61,124.54,7.2356]
[1767106249509,0.05869816,124.59,124.56,0.05671513]
[1767106252309,3.42,124.64,124.56,0.05671513]
[1767106252510,3.42,124.64,124.56,112.5394]
[1767106253200,3.42,124.64,124.59,0.05761428]
[1767106253512,0.05596307,124.61,124.59,0.05761428]
[1767106254211,3.42,124.64,124.59,0.05761428]
[1767106255408,0.05497206,124.63,124.59,0.05761428]
[1767106255711,0.05497206,124.63,124.6,7.2322]
[1767106256106,0.05497206,124.63,124.59,0.05761428]
[1767106256311,0.05497206,124.63,124.59,7.29041428]
[1767106256512,0.05497206,124.63,124.59,0.05761428]
[1767106257511,3.29497206,124.63,124.57,7.234]
[1767106257710,3.24,124.63,124.57,7.234]
[1767106258316,3.24,124.63,124.55,94.88]
[1767106258617,0.0587198,124.6,124.58,0.05600916]
[1767106259012,3.2687198,124.6,124.54,7.2355]
[1767106259212,3.21,124.63,124.54,7.2355]
[1767106259411,3.21,124.63,124.54,112.5564]
[1767106259614,3.21,124.62,124.54,7.2353]
[1767106259913,3.21,124.62,124.57,0.05455025]
[1767106260112,0.06047407,124.59,124.57,0.05455025]
[1767106260510,0.06047407,124.59,124.57,0.00455025]
[1767106262226,0.00047407,124.59,124.57,0.00455025]
[1767106265130,3.21,124.65,124.57,0.00455025]
[1767106265328,3.21,124.65,124.57,112.5292]
[1767106265835,3.21,124.65,124.56,207.416]
[1767106266123,3.21,124.65,124.59,0.05075163]
[1767106266329,0.05159682,124.62,124.59,0.05075163]
[1767106266626,0.0572393,124.62,124.59,0.05131447]
[1767106267620,3.2672393,124.62,124.59,0.00131447]
[1767106268526,3.2672393,124.62,124.53,207.4436]
[1767106268732,3.21,124.62,124.53,207.4436]
[1767106269123,3.21,124.62,124.55,7.2351]
[1767106269325,3.21,124.62,124.53,207.4436]
[1767106269528,0.05715898,124.59,124.56,0.05535166]
[1767106269928,0.05715898,124.59,124.56,7.28985166]
[1767106270130,0.05715898,124.59,124.56,0.05535166]
[1767106272620,0.05715898,124.59,124.56,7.28965166]
[1767106272824,7.2299,124.65,124.56,0.05535166]
[1767106273026,3.21,124.64,124.55,112.545]
[1767106273228,3.21,124.64,124.55,119.90708793]
[1767106273518,3.21,124.64,124.57,7.2341]
[1767106273928,0.05215184,124.62,124.57,7.2341]
[1767106274429,3.26215184,124.62,124.55,14.59678793]
[1767106274621,3.26215184,124.62,124.55,7.2347]
[1767106274818,3.26215184,124.62,124.57,0.0597504]
[1767106275035,3.21,124.61,124.57,0.0597504]
[1767106275427,3.26215184,124.62,124.57,0.0597504]
[1767106277834,3.24,124.65,124.57,119.94953833]
[1767106278021,3.24,124.69,124.59,7.36208793]
[1767106278438,3.24,124.68,124.59,7.36208793]
[1767106278730,3.24,124.66,124.58,7.36208793]
[1767106278937,0.05585283,124.63,124.61,0.05456128]
[1767106279232,0.05585283,124.63,124.61,0.00456128]
[1767106279630,3.29585283,124.63,124.57,102.26208793]
[1767106279836,3.29585283,124.63,124.56,7.36208793]
[1767106280024,3.24,124.63,124.56,7.36208793]
[1767106280225,3.24,124.62,124.56,7.36208793]
[1767106280635,0.06015528,124.6,124.56,7.36208793]
[1767106281537,0.06015528,124.6,124.54,102.24208793]
[1767106281731,0.06015528,124.6,124.56,0.05712116]
[1767106283342,3.24,124.62,124.56,0.05712116]
[1767106283343,3.24,124.62,124.56,14.65370909]
[1767106284633,0.05185582,124.6,124.56,14.65370909]
[1767106285145,0.05185582,124.6,124.56,7.29162116]
[1767106286140,0.05185582,124.6,124.56,7.41920909]
[1767106286340,3.29185582,124.6,124.56,0.05712116]
[1767106287842,10.52435582,124.6,124.54,7.36208793]
[1767106288340,3.29185582,124.6,124.54,7.36208793]
[1767106288939,3.29185582,124.6,124.56,0.06175982]
[1767106289536,3.29185582,124.6,124.51,14.59918793]
[1767106289738,3.24,124.6,124.51,14.59918793]
[1767106290544,0.06080922,124.57,124.54,0.06152856]
[1767106290932,207.397,124.61,124.54,0.06152856]
[1767106290933,3.24,124.61,124.54,0.06152856]
[1767106291332,207.3709,124.64,124.57,7.2339]
[1767106291333,3.24,124.64,124.57,7.2339]
[1767106291942,0.05839652,124.62,124.59,0.05520556]
[1767106293647,3.29839652,124.62,124.56,7.2345]
[1767106294342,0.05839652,124.62,124.57,14.59598793]
[1767106294537,0.05839652,124.62,124.58,0.06070454]
[1767106295648,3.29839652,124.62,124.58,0.06070454]
[1767106297249,0.05839652,124.62,124.58,0.06070454]
[1767106298942,3.24,124.66,124.58,7.29390454]
[1767106299255,3.24,124.66,124.58,7.2332]
[1767106299448,3.24,124.66,124.58,14.59528793]
[1767106299947,0.05855708,124.63,124.61,0.05323877]
[1767106303253,3.24,124.72,124.63,112.4725]
[1767106303449,3.24,124.72,124.61,18.71958156]
[1767106303450,3.24,124.72,124.64,7.36208793]
[1767106303655,3.24,124.72,124.63,7.36208793]
[1767106303955,3.24,124.69,124.62,7.36208793]
[1767106304143,0.05379086,124.67,124.64,0.05977352]
[1767106305861,3.24,124.72,124.64,0.05977352]
[1767106306159,3.24,124.72,124.62,119.84338793]
[1767106306456,3.24,124.72,124.63,7.36208793]
[1767106306848,3.48064229,124.69,124.62,102.24208793]
[1767106307159,3.48064229,124.69,124.62,94.88]
[1767106307356,3.48064229,124.69,124.62,102.1109]
[1767106307659,3.48064229,124.69,124.59,7.36208793]
[1767106307857,3.43,124.69,124.63,0.05512909]
[1767106308157,0.05437704,124.65,124.58,7.36208793]
[1767106309246,0.05437704,124.65,124.6,0.05262925]
[1767106309453,3.43,124.7,124.6,129.61967204]
[1767106309653,3.43,124.7,124.62,7.36208793]
[1767106309957,3.43,124.7,124.63,7.2302]
[1767106310659,0.05519045,124.68,124.65,0.05222215]
[1767106312056,3.43,124.73,124.65,0.05222215]
[1767106312364,3.43,124.73,124.64,7.2297]
[1767106312659,3.43,124.72,124.64,7.2297]
[1767106313064,0.06038205,124.69,124.67,0.05820654]
[1767106313453,3.49038205,124.69,124.63,94.86]
[1767106314451,0.06038205,124.69,124.65,0.06097798]
[1767106314862,0.00038205,124.69,124.65,0.06097798]
[1767106316368,3.43,124.75,124.66,112.4462]
[1767106316568,3.43,124.75,124.67,94.86]
[1767106316769,3.43,124.74,124.67,94.86]
[1767106317267,0.05814529,124.72,124.69,0.00012198]
[1767106317455,3.48814529,124.72,124.69,0.00012198]
[1767106320571,0.05814529,124.72,124.69,0.00012198]
[1767106321273,10.6435,124.76,124.69,0.00012198]
[1767106322072,3.42,124.76,124.69,0.00012198]
[1767106322268,0.00124227,124.74,124.69,0.00012198]
[1767106322469,0.00124227,124.74,124.68,112.4239]
[1767106322676,0.00124227,124.74,124.69,94.84]
[1767106323077,3.42,124.79,124.71,112.4025]
[1767106323280,3.42,124.79,124.7,112.4113]
[1767106323673,11.67405121,124.8,124.74,112.3754]
[1767106323880,3.42,124.85,124.75,207.1862]
[1767106324070,0.05858671,124.81,124.79,0.05414546]
[1767106324272,3.42,124.85,124.79,0.05414546]
[1767106324473,112.2119,124.93,124.79,0.05414546]
[1767106324474,3.42,124.9,124.79,0.05414546]
[1767106324788,3.42,124.9,124.79,107.98978592]
[1767106324982,3.42,124.9,124.8,94.82]
[1767106325279,112.235,124.9,124.79,7.2213]
[1767106325469,0.06158125,124.86,124.83,0.05224016]
[1767106326380,112.1947,124.95,124.83,0.05224016]
[1767106326381,3.42,124.91,124.83,0.05224016]
[1767106326581,3.42,124.91,124.82,94.8]
[1767106326887,3.42,124.94,124.84,112.2845]
[1767106327176,3.42,124.91,124.8,119.5406]
[1767106327380,3.42,124.91,124.83,118.24188592]
[1767106327580,3.42,124.95,124.86,0.05083346]
[1767106327778,3.42,124.95,124.83,118.24188592]
[1767106327981,3.42,124.92,124.82,94.8]
[1767106328181,3.42,124.91,124.79,207.1292]
[1767106328381,3.42,124.91,124.81,112.3114]
[1767106328681,3.42,124.91,124.85,0.05545523]
[1767106329579,0.03644575,124.89,124.85,0.05545523]
[1767106330583,3.45644575,124.89,124.85,0.05545523]
[1767106330781,115.69874575,124.89,124.82,94.78]
[1767106330982,10.67194575,124.89,124.82,94.78]
[1767106331183,0.03644575,124.89,124.8,213.02958592]
[1767106331384,3.42,124.92,124.82,13.16768592]
[1767106331583,3.42,124.92,124.83,94.76]
[1767106332086,0.05449828,124.89,124.86,0.05879118]
[1767106332783,3.42,124.95,124.86,6.0072771]
[1767106332984,3.42,124.95,124.86,100.68848592]
[1767106333185,3.42,124.95,124.74,7.36208793]
[1767106333489,3.42,124.94,124.83,118.24338592]
[1767106333678,3.42,124.94,124.85,5.94848592]
[1767106334281,0.03740269,124.91,124.88,0.05549246]
[1767106334477,3.42,124.94,124.88,0.05549246]
[1767106334884,112.1812,124.96,124.88,0.05549246]
[1767106335091,3.42,124.94,124.84,94.74]
[1767106335392,10.6341,124.92,124.83,94.72]
[1767106335594,3.42,124.92,124.87,0.05354671]
[1767106336090,3.42,124.92,124.81,112.311]
[1767106336091,3.34,124.9,124.81,94.72]
[1767106336390,3.34,124.9,124.82,7.08676898]
[1767106336595,10.5538,124.92,124.83,7.08676898]
[1767106336788,10.5538,124.92,124.84,7.08676898]
[1767106336993,10.5538,124.92,124.87,0.05901352]
[1767106336994,0.05354672,124.89,124.87,0.05901352]
[1767106337486,0.05354672,124.89,124.83,94.72]
[1767106338188,10.60934672,124.89,124.8,101.9405]
[1767106338394,3.34,124.91,124.85,0.05412592]
[1767106338590,10.5546,124.91,124.85,0.05412592]
[1767106339194,3.34,124.9,124.85,0.05412592]
[1767106339393,0.05458822,124.89,124.85,0.05412592]
[1767106339594,3.39458822,124.89,124.85,0.05412592]
[1767106340388,3.34,124.87,124.78,7.2215]
[1767106340696,3.34,124.86,124.77,94.7]
[1767106340897,3.34,124.86,124.74,7.2239]
[1767106340898,3.34,124.85,124.74,7.2239]
[1767106341190,3.34,124.85,124.75,94.7]
[1767106341392,0.05243871,124.81,124.79,0.05398716]
[1767106342090,0.05243871,124.81,124.73,112.3814]
[1767106342091,0.05243871,124.81,124.74,94.7]
[1767106342390,3.34,124.83,124.74,94.7]
[1767106342594,3.34,124.83,124.74,101.9239]
[1767106342890,3.34,124.83,124.67,136.6017]
[1767106342891,3.34,124.82,124.69,5.94848592]
[1767106343193,0.05528258,124.77,124.75,0.05728383]
[1767106343389,0.05720754,124.77,124.75,0.05728383]
[1767106344195,3.34,124.84,124.75,0.05728383]
[1767106344496,3.34,124.87,124.76,112.356]
[1767106345001,3.34,124.87,124.77,94.72]
[1767106345195,0.05744647,124.83,124.81,0.05101583]
[1767106345992,0.05744647,124.83,124.81,0.00101583]
[1767106346500,3.39744647,124.83,124.67,7.36208793]
[1767106346707,3.34,124.83,124.72,112.3926]
[1767106346895,3.34,124.86,124.75,112.368]
[1767106347097,3.34,124.85,124.76,7.2227]
[1767106347805,3.34,124.85,124.79,0.0568388]
[1767106347997,3.34,124.87,124.79,0.0568388]
[1767106348301,3.34,124.87,124.77,94.72]
[1767106348506,3.34,124.87,124.78,112.3385]
[1767106348995,0.05233258,124.84,124.81,0.05710926]
[1767106349697,0.00233258,124.84,124.81,0.05710926]
[1767106354613,112.2061,124.94,124.81,0.05710926]
[1767106354614,3.34,124.93,124.82,207.0193]
[1767106354911,7.214,124.92,124.81,118.25628592]
[1767106355104,10.554,124.92,124.82,94.72]
[1767106355611,10.554,124.92,124.83,7.2188]
[1767106355811,0.04808659,124.88,124.86,0.05759488]
[1767106359115,0.04808659,124.88,124.81,107.86828592]
[1767106359318,3.34,124.92,124.83,5.94848592]
[1767106359523,3.34,124.97,124.85,118.22388592]
[1767106359721,3.34,124.97,124.9,7.2148]
[1767106360317,0.05756021,124.95,124.92,0.05551185]
[1767106362228,3.34,124.94,124.87,101.9163]
[1767106362418,0.06087854,124.92,124.89,0.06133657]
[1767106363121,14.81893141,125.0,124.92,112.2148]
[1767106363321,14.81893141,125.0,124.92,94.7]
[1767106363727,11.47893141,125.0,124.93,13.16148592]
[1767106363929,0.05222819,124.98,124.95,0.06089408]
[1767106364227,11.47893141,125.0,124.95,0.06089408]
[1767106365924,14.81893141,125.0,124.95,0.06089408]
[1767106366120,11.47893141,125.0,124.95,0.06089408]
[1767106367330,3.2,125.03,124.95,0.06089408]
[1767106367525,3.2,125.03,124.98,0.05509647]
[1767106368026,115.2936,125.06,124.98,0.05509647]
[1767106368223,3.2,125.05,124.95,7.2118]
[1767106369028,10.4068,125.05,124.95,7.2118]
[1767106369336,0.05139575,125.01,124.99,0.0539205]
[1767106369529,0.00139575,125.01,124.99,0.0539205]
[1767106369725,3.2,125.08,124.99,0.0539205]
[1767106369929,3.2,125.08,124.99,94.64]
[1767106370126,3.2,125.08,124.99,118.10018592]
[1767106370332,3.2,125.08,125.0,94.64]
[1767106370533,3.2,125.08,125.0,213.9911]
[1767106370725,3.2,125.08,125.03,0.05852347]
[1767106371431,122.4593,125.1,125.03,0.05852347]
[1767106371620,3.2,125.07,124.98,94.64]
[1767106371819,3.2,125.07,124.98,206.7972]
[1767106372034,3.2,125.1,124.99,112.1513]
[1767106372334,3.2,125.13,125.03,5.94848592]
[1767106372530,3.2,125.13,125.07,0.0552459]
[1767106372531,0.05896695,125.09,125.07,0.0552459]
[1767106372733,0.05896695,125.09,124.96,112.1707]
[1767106372930,0.05896695,125.09,125.01,94.62]
[1767106372931,3.2,125.09,125.01,94.62]
[1767106373132,3.2,125.09,125.0,94.62]
[1767106373837,0.06020045,125.06,125.03,0.05094258]
[1767106374138,3.2,125.12,125.03,0.05094258]
[1767106374328,3.2,125.12,125.01,118.08048592]
[1767106374636,3.2,125.15,125.04,5.94848592]
[1767106374836,3.2,125.15,125.04,212.67338592]
[1767106375031,10.3989,125.18,125.06,125.24088592]
[1767106375232,10.3989,125.18,125.07,94.62]
[1767106375432,3.2,125.18,125.08,112.068]
[1767106375633,14.60748941,125.19,125.1,112.0507]
[1767106375634,10.91897674,125.19,125.1,112.0507]
[1767106375828,3.2,125.24,125.14,5.94848592]
[1767106376028,3.2,125.24,125.15,94.6]
[1767106376228,115.1407,125.23,125.15,94.6]
[1767106376435,3.2,125.22,125.08,119.2729]
[1767106376634,115.1501,125.22,125.09,94.6]
[1767106376834,115.1501,125.22,125.1,5.94848592]
[1767106377145,3.2,125.2,125.09,94.6]
[1767106377438,115.1403,125.23,125.11,5.94848592]
[1767106377740,3.2,125.2,125.11,94.58]
[1767106377933,111.9166,125.26,125.12,5.94848592]
[1767106378129,3.2,125.23,125.12,5.94848592]
[1767106378449,115.1166,125.26,125.14,5.94848592]
[1767106378735,3.2,125.29,125.19,0.05670909]
[1767106379040,3.32,125.27,125.18,94.58]
[1767106379233,115.2243,125.27,125.17,94.58]
[1767106379437,111.9131,125.26,125.17,94.58]
[1767106379639,3.32,125.23,125.13,94.56]
[1767106379840,3.32,125.22,125.13,94.56]
[1767106380048,0.05821281,125.19,125.02,112.1173]
[1767106380338,0.05821281,125.19,125.06,94.56]
[1767106380339,115.2955,125.19,125.06,94.56]
[1767106380554,111.996,125.17,125.06,100.50848592]
[1767106380838,111.9684,125.2,125.09,5.94848592]
[1767106380839,115.2884,125.2,125.09,5.94848592]
[1767106381033,115.2884,125.2,125.13,0.05774217]
[1767106381034,3.32,125.2,125.13,0.05774217]